fUST/lending_fUST_20240504
["ID","MTS","AMOUNT","RATE_DAILY","PERIOD"]
[325367616,1714754836341,-848.95,0.00024657,2]
[325367617,1714754836361,-522.1533314,0.00024657,2]
[325367618,1714754836382,-500.0,0.00024657,2]
[325367619,1714754836402,-500.0,0.00024657,2]
[325367620,1714754836422,-639.26,0.00024657,2]
[325367621,1714754836442,-2504.78,0.00024657,2]
[325367622,1714754836462,-182.41918996,0.00024657,2]
[325367623,1714754839097,-1492.55196417,0.00020913,2]
[325367624,1714754839117,-64.68241865,0.00024657,2]
[325367625,1714754839140,-500.0,0.00024657,2]
[325367626,1714754839161,-500.0,0.00024657,2]
[325367627,1714754839181,-500.0,0.00024657,2]
[325367628,1714754839201,-1031.59,0.00024657,2]
[325367629,1714754839221,-568.28,0.00024657,2]
[325367630,1714754839240,-588.73,0.00024657,2]
[325367631,1714754839260,-500.0,0.00024657,2]
[325367632,1714754839280,-500.0,0.00024657,2]
[325367633,1714754839300,-610.68,0.00024657,2]
[325367634,1714754839320,-878.36,0.00024657,2]
[325367635,1714754839340,-1838.03,0.00024657,2]
[325367636,1714754839360,-412.54521393,0.00024657,2]
[325367637,1714754839382,-500.0,0.00024657,2]
[325367638,1714754839401,-504.62,0.00024657,2]
[325367639,1714754839421,-4449.77,0.00024657,2]
[325367640,1714754839442,-500.0,0.00024657,2]
[325367641,1714754839463,-500.0,0.00024657,2]
[325367642,1714754839483,-343.15891656,0.00024657,2]
[325367643,1714754839502,-500.0,0.00024657,2]
[325367644,1714754839523,-1676.18,0.00024657,2]
[325367645,1714754839543,-5136.28,0.00024657,2]
[325367646,1714754839563,-500.0,0.00024657,2]
[325367647,1714754839583,-500.0,0.00024657,2]
[325367648,1714754839603,-500.0,0.00024657,2]
[325367649,1714754839624,-500.0,0.00024657,2]
[325367650,1714754839648,-500.0,0.00024657,2]
[325367651,1714754839672,-965.93,0.00024657,2]
[325367652,1714754839693,-500.0,0.00024657,2]
[325367653,1714754839713,-509.97464864,0.00024657,2]
[325367654,1714754839734,-500.0,0.00024657,2]
[325367655,1714754839754,-500.0,0.00024657,2]
[325367656,1714754839774,-2672.14,0.00024657,2]
[325367657,1714754839794,-500.0,0.00024657,2]
[325367658,1714754839814,-550.22477213,0.00024657,2]
[325367659,1714754839835,-501.61989109,0.00024657,2]
[325367660,1714754839858,-5570.38,0.00024657,2]
[325367661,1714754839881,-500.0,0.00024657,2]
[325367662,1714754839901,-500.0,0.00024657,2]
[325367663,1714754839921,-500.0,0.00024657,2]
[325367664,1714754839942,-500.0,0.00024657,2]
[325367665,1714754839963,-500.0,0.00024657,2]
[325367666,1714754839983,-500.0,0.00024657,2]
[325367667,1714754840003,-500.0,0.00024657,2]
[325367668,1714754840022,-500.0,0.00024657,2]
[325367669,1714754840042,-500.0,0.00024657,2]
[325367670,1714754840062,-500.0,0.00024657,2]
[325367671,1714754840084,-1086.96,0.00024657,2]
[325367672,1714754840104,-500.0,0.00024657,2]
[325367673,1714754840123,-500.0,0.00024657,2]
[325367674,1714754840143,-500.0,0.00024657,2]
[325367675,1714754840163,-5654.65,0.00024657,2]
[325367676,1714754840184,-500.0,0.00024657,2]
[325367677,1714754840204,-500.0,0.00024657,2]
[325367678,1714754840225,-590.03,0.00024657,2]
[325367679,1714754840247,-500.0,0.00024657,2]
[325367680,1714754840267,-500.0,0.00024657,2]
[325367681,1714754840287,-472.8675588,0.00024657,2]
[325367682,1714754949307,-510.84869245,0.00020913,2]
[325367683,1714754957086,-5000.0,0.00023,2]
[325367684,1714754957105,-160.890301,0.00023039,2]
[325367685,1714754957125,-1146.68022854,0.00024382,2]
[325367686,1714754957144,-2000.0,0.00024557,2]
[325367687,1714754957163,-1232.88460174,0.00024557,2]
[325367688,1714754957182,-471.2862707,0.00024656,2]
[325367689,1714754957202,-27.1324412,0.00024657,2]
[325367690,1714754957221,-1177.96,0.00024657,2]
[325367691,1714754957247,-500.0,0.00024657,2]
[325367692,1714754957270,-612.64,0.00024657,2]
[325367693,1714754957289,-500.0,0.00024657,2]
[325367694,1714754957308,-502.73824504,0.00024657,2]
[325367695,1714754957327,-500.0,0.00024657,2]
[325367696,1714754957347,-510.7900526,0.00024657,2]
[325367697,1714754957369,-500.0,0.00024657,2]
[325367698,1714754957389,-1000.0,0.00024657,2]
[325367699,1714754957408,-500.0,0.00024657,2]
[325367700,1714754957428,-1020.32,0.00024657,2]
[325367701,1714754957556,-500.0,0.00024657,2]
[325367702,1714754957576,-718.55,0.00024657,2]
[325367703,1714754957596,-500.0,0.00024657,2]
[325367704,1714754957615,-7710.55,0.00024657,2]
[325367705,1714754957633,-500.0,0.00024657,2]
[325367706,1714754957652,-1223.07,0.00024657,2]
[325367707,1714754957672,-4323.45525918,0.00024657,2]
[325367708,1714754968112,510.84869245,0.00020913,2]
[325367709,1714754971624,351.50129672,0.00020913,2]
[325367710,1714754972923,5000.0,0.00023,2]
[325367738,1714755032448,-266.15216876,0.00024656,2]
[325367740,1714755032458,-3936.57530658,0.00024656,2]
[325367742,1714755032469,-1063.42469342,0.00024656,2]
[325367744,1714755032478,-111.22474082,0.00024657,2]
[325367746,1714755032488,-987.67,0.00024657,2]
[325367748,1714755032497,-500.0,0.00024657,2]
[325367750,1714755032506,-2449.43,0.00024657,2]
[325367752,1714755032515,-658.29,0.00024657,2]
[325367754,1714755032525,-5028.47,0.00024657,2]
[325367756,1714755032534,-762.96,0.00024657,2]
[325367758,1714755032543,-500.0,0.00024657,2]
[325367760,1714755032552,-500.0,0.00024657,2]
[325367762,1714755032564,-500.0,0.00024657,2]
[325367764,1714755032573,-500.0,0.00024657,2]
[325367766,1714755032582,-500.0,0.00024657,2]
[325367768,1714755032591,-500.0,0.00024657,2]
[325367770,1714755032600,-500.0,0.00024657,2]
[325367772,1714755032609,-500.0,0.00024657,2]
[325367774,1714755032618,-500.0,0.00024657,2]
[325367776,1714755032627,-500.0,0.00024657,2]
[325367778,1714755032636,-2749.2,0.00024657,2]
[325367780,1714755032645,-790.03,0.00024657,2]
[325367782,1714755032654,-502.01368812,0.00024657,2]
[325367784,1714755032663,-500.0,0.00024657,2]
[325367786,1714755032672,-7871.47,0.00024657,2]
[325367796,1714755032824,-500.0,0.00024657,2]
[325367797,1714755032834,-515.75478667,0.00024657,2]
[325367798,1714755032844,-627.84,0.00024657,2]
[325367799,1714755032854,-500.0,0.00024657,2]
[325367800,1714755032863,-500.0,0.00024657,2]
[325367801,1714755032872,-813.57,0.00024657,2]
[325367802,1714755032881,-500.0,0.00024657,2]
[325367803,1714755032891,-500.0,0.00024657,2]
[325367804,1714755032900,-500.0,0.00024657,2]
[325367805,1714755032911,-500.0,0.00024657,2]
[325367806,1714755032921,-500.0,0.00024657,2]
[325367808,1714755032931,-841.76,0.00024657,2]
[325367810,1714755032942,-500.0,0.00024657,2]
[325367811,1714755032951,-3646.85,0.00024657,2]
[325367812,1714755032960,-500.0,0.00024657,2]
[325367813,1714755032970,-500.0,0.00024657,2]
[325367814,1714755032979,-500.0,0.00024657,2]
[325367815,1714755032988,-1135.99,0.00024657,2]
[325367816,1714755032998,-431.33605261,0.00024657,2]
[325367817,1714755033007,-500.0,0.00024657,2]
[325367818,1714755033017,-1631.46,0.00024657,2]
[325367819,1714755033027,-506.22491566,0.00024657,2]
[325367820,1714755033036,-1096.13,0.00024657,2]
[325367821,1714755033046,-1926.92,0.00024657,2]
[325367822,1714755033056,-500.0,0.00024657,2]
[325367823,1714755033066,-900.77,0.00024657,2]
[325367824,1714755033075,-500.0,0.00024657,2]
[325367825,1714755033085,-32063.55,0.00024657,2]
[325367826,1714755033094,-4264.36,0.00024657,2]
[325367827,1714755033104,-1761.45,0.00024657,2]
[325367828,1714755033113,-500.0,0.00024657,2]
[325367829,1714755033122,-500.0,0.00024657,2]
[325367830,1714755033131,-1606.34,0.00024657,2]
[325367831,1714755033140,-952.08,0.00024657,2]
[325367832,1714755033149,-500.0,0.00024657,2]
[325367833,1714755033159,-500.0,0.00024657,2]
[325367834,1714755033168,-500.0,0.00024657,2]
[325367835,1714755033178,-2560.8,0.00024657,2]
[325367836,1714755033187,-500.0,0.00024657,2]
[325367837,1714755033197,-500.0,0.00024657,2]
[325367838,1714755033206,-176.80829853,0.00024657,2]
[325367910,1714755040571,-323.19170147,0.00024657,2]
[325367911,1714755040580,-500.0,0.00024657,2]
[325367912,1714755040589,-500.0,0.00024657,2]
[325367913,1714755040598,-296.12552735,0.00024657,2]
[325367914,1714755042797,5000.0,0.00023,2]
[325367938,1714755043581,-500.0,0.00024656,2]
[325367939,1714755043591,-640.06315418,0.00024657,2]
[325367978,1714755050390,266.15216876,0.00020913,2]
[325367979,1714755064269,189.30063706,0.00020913,2]
[325367980,1714755065554,2883.55028908,0.00023,7]
[325367981,1714755066779,5000.0,0.00023,2]
[325367982,1714755067049,303.0510824,0.00020913,2]
[325367983,1714755067916,6132.06031256,0.00020913,2]
[325367984,1714755068136,266.15216876,0.00020913,2]
[325367985,1714755069902,154.8915759,0.00020913,2]
[325367986,1714755070093,709.89305319,0.00020913,2]
[325367987,1714755070126,154.96928135,0.00020913,2]
[325367988,1714755070666,472.12357594,0.00020913,2]
[325367989,1714755072004,628.72030382,0.00020913,2]
[325367990,1714755072144,1096.49359461,0.00020913,2]
[325367991,1714755072312,194.17909869,0.00020913,2]
[325367992,1714755073310,154.95481595,0.00020913,2]
[325367993,1714755073335,285.26332712,0.00020913,2]
[325367994,1714755074326,158.46005998,0.00020913,2]
[325367995,1714755074860,226.48928157,0.00020913,2]
[325367996,1714755074888,1246.69755972,0.00020913,2]
[325367997,1714755075463,208.68971115,0.00020913,2]
[325367998,1714755076064,216.08417864,0.00020913,2]
[325367999,1714755076413,155.39710041,0.00020913,2]
[325368000,1714755077052,1012.49812522,0.00020913,2]
[325368001,1714755077293,476.16164115,0.00020913,2]
[325368002,1714755078298,1149.70289251,0.00020913,2]
[325368003,1714755079568,474.91817209,0.00020913,2]
[325368004,1714755079999,747.74993229,0.00020913,2]
[325368005,1714755080151,241.74656629,0.00020913,2]
[325368006,1714755080273,214.02290232,0.00020913,2]
[325368007,1714755080302,161.97859023,0.00020913,2]
[325368008,1714755082067,327.69814743,0.00020913,2]
[325368010,1714755084134,266.15216876,0.00020913,2]
[325368011,1714755084952,211.60313803,0.00020913,2]
[325368012,1714755090766,5000.0,0.00023,2]
[325368013,1714755096454,166.666666,0.00023228,2]
[325368014,1714755096694,166.666666,0.00023861,2]
[325368015,1714755106770,2448.31222927,0.00023,2]
[325368016,1714755108153,266.15216876,0.00020913,2]
[325368017,1714755132144,266.15216876,0.00020913,2]
[325368018,1714755139889,44902.26325482,0.00020913,2]
[325368019,1714755266006,462.5422681,0.000125,2]
[325368020,1714755312996,654.4637072,0.0002,2]
[325368021,1714755330959,654.4637072,0.0002,2]
[325368022,1714755346985,654.4637072,0.0002,2]
[325368023,1714755369029,654.4637072,0.0002,2]
[325368024,1714755395067,654.4637072,0.0002,2]
[325368025,1714755414988,654.4637072,0.0002,2]
[325368026,1714755437047,654.4637072,0.0002,2]
[325368028,1714755459158,654.4637072,0.0002,2]
[325368029,1714755483041,654.4637072,0.0002,2]
[325368033,1714755498980,794.94196982,0.0002,2]
[325368034,1714755508379,10000.0,0.00026662,120]
[325368035,1714755520965,7352.0,0.00026662,120]
[325368038,1714755874438,500.0,0.00019178,2]
[325368039,1714755874490,500.0,0.00019178,2]
[325368040,1714755874548,373.11218599,0.00019178,2]
[325368041,1714755905903,182.92,0.00026291,35]
[325368042,1714755905933,150.5,0.00026291,35]
[325368043,1714755905973,150.5,0.00026291,35]
[325368044,1714755906411,241.02,0.00026281,35]
[325368045,1714755906557,150.5,0.00026281,35]
[325368046,1714755906760,150.5,0.00026291,35]
[325368047,1714755907141,151.9,0.00026271,35]
[325368048,1714755907346,150.5,0.00026281,35]
[325368049,1714755907966,232.92,0.00026271,35]
[325368050,1714755924898,19207.04802744,0.00019178,2]
[325368051,1714755937602,154.64431807,0.00019178,2]
[325368052,1714755938890,6790.8060151,0.00019178,2]
[325368053,1714755940172,-336.82818623,0.00020542,2]
[325368054,1714755945129,-8475.35266277,0.00020542,2]
[325368055,1714755945153,-266.15216876,0.00020912,2]
[325368056,1714755945177,-1203.54975148,0.00020912,2]
[325368057,1714755945201,-21308.70223524,0.00020913,2]
[325368058,1714755951829,154.64431807,0.00019178,2]
[325368059,1714755977632,379.63961871,9.999e-05,2]
[325368060,1714756061773,5500.0,0.0002,2]
[325368061,1714756132155,154.64431807,0.0002,2]
[325368062,1714756148149,164.83547663,0.0002,2]
[325368063,1714756156119,-1249.40618152,0.00020913,2]
[325368064,1714756156141,-166.666666,0.00021918,2]
[325368065,1714756156161,-309.69018318,0.000223,2]
[325368066,1714756156182,-379.63961871,0.0002243,2]
[325368067,1714756156202,-166.666666,0.00022431,2]
[325368068,1714756156223,-166.666666,0.00022944,2]
[325368069,1714756156242,-166.666666,0.00023456,2]
[325368070,1714756156262,-620.01119508,0.00023463,2]
[325368071,1714756156283,-166.666666,0.00023969,2]
[325368072,1714756162103,-3498.44222868,0.00024371,4]
[325368073,1714756162124,-166.666666,0.00024482,2]
[325368074,1714756162150,-6842.77548532,0.00024557,2]
[325368222,1714756239153,-379.63961871,0.00024382,2]
[325368223,1714756239163,-431.34531645,0.00024557,2]
[325368259,1714756625999,150.5,0.0002602,35]
[325368260,1714756626193,150.5,0.0002602,35]
[325368261,1714756626587,150.5,0.0002601,35]
[325368262,1714756626790,150.5,0.0002601,35]
[325368263,1714756627171,150.5,0.00026,35]
[325368264,1714756627400,214.86,0.00026,35]
[325368265,1714756713136,152.56802067,0.00019178,2]
[325368266,1714757052142,379.63961871,9.999e-05,2]
[325368267,1714757107176,182.0,0.00025743,35]
[325368268,1714757107756,182.0,0.00025733,35]
[325368269,1714757108346,182.0,0.00025723,35]
[325368270,1714757136173,-166.666666,0.00022743,2]
[325368271,1714757136192,-160.890301,0.00022824,2]
[325368272,1714757136213,-8967.5517475,0.00023013,2]
[325368273,1714757136232,-161.184568,0.00023099,2]
[325368274,1714757136252,-166.666666,0.00023363,2]
[325368275,1714757136272,-166.666666,0.00023983,2]
[325368276,1714757136291,-153.0,0.00024301,2]
[325368277,1714757136310,-1911.8679198,0.000245,2]
[325368278,1714757225626,150.5,0.00025743,35]
[325368279,1714757226374,150.5,0.00025733,35]
[325368280,1714757226819,150.5,0.00025723,35]
[325368325,1714757346869,150.5,0.00025743,35]
[325368326,1714757347490,150.5,0.00025733,35]
[325368327,1714757348092,150.5,0.00025723,35]
[325368328,1714757353109,-379.63961871,0.00020913,2]
[325368329,1714757355108,-725.49301925,0.000245,2]
[325368330,1714757355130,-10041.21989549,0.000245,7]
[325368331,1714757355152,-3932.84696714,0.00024557,2]
[325368332,1714757355172,-2000.0,0.00024557,2]
[325368333,1714757355333,-185.053397,0.00024557,2]
[325368334,1714757355353,-166.666666,0.00024603,2]
[325368335,1714757355374,-185.05339697,0.00024626,2]
[325368336,1714757355393,-620.00055975,0.00024636,2]
[325368337,1714757355417,-277.63,0.00024647,3]
[325368338,1714757355437,-4233.16857937,0.00024655,2]
[325368339,1714757355457,-154.78330338,0.00024655,2]
[325368340,1714757355476,-1091.78088148,0.00024655,2]
[325368341,1714757355498,-186.35993728,0.00024655,2]
[325368342,1714757355519,-154.86993414,0.00024655,2]
[325368343,1714757355539,-354.57887114,0.00024655,2]
[325368344,1714757355560,-1825.89,0.00024655,2]
[325368345,1714757355580,-7060.83625385,0.00024655,2]
[325368387,1714757431914,-1109.59614153,0.00024555,2]
[325368388,1714757431924,-2000.0,0.00024557,2]
[325368389,1714757431933,-13146.06907335,0.00024655,2]
[325368390,1714757431943,-379.01377989,0.00024655,2]
[325368391,1714757431952,-1022.77717515,0.00024656,2]
[325368392,1714757431961,-1622.14156305,0.00024656,2]
[325368393,1714757431970,-500.0,0.00024657,2]
[325368394,1714757431979,-500.0,0.00024657,2]
[325368395,1714757431988,-500.0,0.00024657,2]
[325368396,1714757431997,-500.0,0.00024657,2]
[325368397,1714757432006,-500.0,0.00024657,2]
[325368398,1714757432015,-500.0,0.00024657,2]
[325368399,1714757432024,-500.0,0.00024657,2]
[325368400,1714757432033,-500.0,0.00024657,2]
[325368401,1714757432042,-500.0,0.00024657,2]
[325368402,1714757432051,-500.0,0.00024657,2]
[325368403,1714757432061,-1000.0,0.00024657,2]
[325368404,1714757432070,-500.0,0.00024657,2]
[325368405,1714757432079,-500.0,0.00024657,2]
[325368406,1714757432088,-500.0,0.00024657,2]
[325368407,1714757432097,-507.00532692,0.00024657,2]
[325368408,1714757432107,-500.0,0.00024657,2]
[325368409,1714757432116,-500.0,0.00024657,2]
[325368410,1714757432125,-500.0,0.00024657,2]
[325368411,1714757432134,-500.0,0.00024657,2]
[325368412,1714757432143,-500.0,0.00024657,2]
[325368413,1714757432152,-500.0,0.00024657,2]
[325368414,1714757432161,-500.0,0.00024657,2]
[325368415,1714757432170,-508.30494265,0.00024657,2]
[325368416,1714757432180,-500.0,0.00024657,2]
[325368417,1714757432189,-500.0,0.00024657,2]
[325368418,1714757432199,-500.0,0.00024657,2]
[325368419,1714757432208,-509.79341792,0.00024657,2]
[325368420,1714757432217,-500.0,0.00024657,2]
[325368421,1714757432226,-500.0,0.00024657,2]
[325368422,1714757432236,-718.45,0.00024657,2]
[325368423,1714757432246,-982.45,0.00024657,2]
[325368424,1714757432255,-500.0,0.00024657,2]
[325368425,1714757432265,-419.80897748,0.00024657,2]
[325368426,1714757432274,-510.0,0.00024657,2]
[325368427,1714757432283,-500.0,0.00024657,2]
[325368428,1714757432292,-500.0,0.00024657,2]
[325368429,1714757432301,-500.0,0.00024657,2]
[325368430,1714757432312,-500.0,0.00024657,2]
[325368431,1714757432321,-569.42708086,0.00024657,2]
[325368432,1714757432330,-520.59853225,0.00024657,2]
[325368433,1714757432339,-500.0,0.00024657,2]
[325368434,1714757432350,-500.0,0.00024657,2]
[325368435,1714757432360,-500.0,0.00024657,2]
[325368436,1714757432369,-757.23,0.00024657,2]
[325368437,1714757432378,-500.0,0.00024657,2]
[325368438,1714757432387,-688.44,0.00024657,2]
[325368439,1714757432396,-917.68,0.00024657,2]
[325368440,1714757432405,-500.0,0.00024657,2]
[325368441,1714757432414,-500.0,0.00024657,2]
[325368442,1714757432425,-304.7513673,0.00024657,2]
[325368443,1714757432436,-298.6011115,0.00024657,2]
[325368500,1714757438154,-307.30629182,0.00024657,2]
[325368503,1714757438168,-500.0,0.00024657,2]
[325368505,1714757438178,-500.0,0.00024657,2]
[325368507,1714757438187,-500.0,0.00024657,2]
[325368509,1714757438197,-18.58370818,0.00024657,2]
[325368568,1714757446038,-481.41629182,0.00024657,2]
[325368570,1714757446048,-500.0,0.00024657,2]
[325368571,1714757446057,-800.67,0.00024657,2]
[325368572,1714757446067,-868.99,0.00024657,2]
[325368573,1714757446076,-500.0,0.00024657,2]
[325368574,1714757446086,-500.0,0.00024657,2]
[325368575,1714757446095,-644.61,0.00024657,2]
[325368577,1714757446104,-1357.86,0.00024657,2]
[325368579,1714757446113,-500.0,0.00024657,2]
[325368581,1714757446123,-500.0,0.00024657,2]
[325368582,1714757446132,-502.6489701,0.00024657,2]
[325368585,1714757446142,-500.0,0.00024657,2]
[325368586,1714757446151,-569.61,0.00024657,2]
[325368588,1714757446160,-500.0,0.00024657,2]
[325368590,1714757446169,-500.0,0.00024657,2]
[325368592,1714757446179,-500.0,0.00024657,2]
[325368594,1714757446188,-502.91754548,0.00024657,2]
[325368596,1714757446198,-326.28538383,0.00024657,2]
[325368598,1714757446207,-618.52,0.00024657,2]
[325368600,1714757446217,-500.0,0.00024657,2]
[325368602,1714757446227,-745.05,0.00024657,2]
[325368604,1714757446237,-500.0,0.00024657,2]
[325368605,1714757446246,-500.0,0.00024657,2]
[325368606,1714757446256,-29.68027485,0.00024657,2]
[325368607,1714757465929,150.5,0.00026017,35]
[325368608,1714757466544,220.61,0.00026007,35]
[325368609,1714757489594,1000.0,0.00022487,2]
[325368610,1714757489654,1000.0,0.00022599,2]
[325368611,1714757489687,1000.0,0.00022477,2]
[325368612,1714757489729,1000.0,0.00022527,2]
[325368613,1714757489760,1000.0,0.00022724,2]
[325368614,1714757489800,1063.25082243,0.00022555,2]
[325368615,1714757489837,1000.0,0.00022475,2]
[325368616,1714757489890,1000.0,0.00022692,2]
[325368631,1714758339128,-166.666666,0.00023095,2]
[325368632,1714758339150,-166.666666,0.00023725,2]
[325368633,1714758339172,-7657.38482293,0.00023998,2]
[325368634,1714758356101,-3377.63491307,0.00023998,2]
[325368636,1714758564145,-45120.1063883,0.00023998,2]
[325368637,1714758566121,-20676.25474,0.00023998,2]
[325368875,1714758643497,-166.666666,0.00023085,2]
[325368876,1714758643507,-166.666666,0.00023714,2]
[325368877,1714758643517,-554.51341404,0.00023998,2]
[325368887,1714758646293,-8665.2705877,0.00023998,2]
[325368890,1714758928536,-200.90632862,0.00020913,2]
[325368891,1714758928558,-1001.17820823,0.00023,2]
[325369095,1714759636198,-166.666666,0.00022665,2]
[325369096,1714759636220,-3335.2795199,0.00022955,2]
[325369097,1714759636241,-160.890301,0.00022967,2]
[325369098,1714759636261,-160.832721,0.00023202,2]
[325369099,1714759636281,-169.82758292,0.00023242,2]
[325369100,1714759636302,-166.666666,0.00023283,2]
[325369101,1714759636322,-306.0,0.00023578,2]
[325369102,1714759636345,-153.0,0.00023578,2]
[325369103,1714759636364,-153.0,0.00023578,2]
[325369104,1714759636384,-153.0,0.00023678,2]
[325369105,1714759636403,-153.0,0.00023678,2]
[325369106,1714759636425,-153.0,0.00023678,2]
[325369107,1714759636445,-153.0,0.00023678,2]
[325369108,1714759636467,-153.0,0.00023678,2]
[325369109,1714759636487,-153.0,0.00023678,2]
[325369110,1714759636506,-153.0,0.00023678,2]
[325369111,1714759636526,-153.0,0.00023778,2]
[325369112,1714759636546,-153.0,0.00023778,2]
[325369113,1714759636568,-153.0,0.00023778,2]
[325369114,1714759636588,-153.0,0.00023778,2]
[325369115,1714759636608,-166.666666,0.00023901,2]
[325369116,1714759636628,-14054.42461718,0.00023998,2]
[325369119,1714759766109,-47364.07555566,0.00023998,2]
[325369160,1714759832649,-4864.4806998,0.00023998,2]
[325369168,1714759832717,-37399.6275102,0.00023998,2]
[325369171,1714759832728,-329.16322832,0.00023998,2]
[325369384,1714759838757,-1790.56103531,0.00023998,2]
[325369413,1714759843731,-59.40217283,0.00023998,2]
[325369414,1714759843743,-8087.10031878,0.00023998,2]
[325369415,1714759843754,-1373.983849,0.000241,2]
[325369416,1714759843764,-429.7295646,0.00024164,2]
[325369417,1714759843773,-306.0,0.00024219,2]
[325369418,1714759843784,-189.12463774,0.00024255,2]
[325369419,1714759843793,-1000.0,0.00024377,2]
[325369420,1714759843804,-153.0,0.000244,2]
[325369421,1714759843816,-153.0,0.000244,2]
[325369422,1714759843826,-166.666666,0.00024519,2]
[325369423,1714759843836,-800.43004157,0.00024555,2]
[325369424,1714759843846,-186.93715348,0.00024555,2]
[325369425,1714759843856,-1091.78088148,0.00024556,2]
[325369426,1714759843865,-33499.96138194,0.00024557,3]
[325369427,1714759843880,-1569.88009806,0.00024557,3]
[325369450,1714760044387,1146.68022854,0.00015,2]
[325369478,1714760116570,330.39,0.0001,5]
[325369479,1714760545947,2306.64,0.00025753,20]
[325369480,1714760546236,2306.64,0.00025753,22]
[325369481,1714760546503,2306.64,0.00025753,24]
[325369482,1714760546773,2306.64,0.00025753,26]
[325369483,1714760547084,2306.64,0.00025753,28]
[325369484,1714760547365,2306.64,0.00025753,30]
[325369485,1714760547622,2306.64,0.00025753,32]
[325369486,1714760547895,2306.64,0.00025753,34]
[325369487,1714760548185,2306.64,0.00025753,36]
[325369488,1714760548461,2306.64,0.00025753,38]
[325369489,1714760548799,2306.64,0.00025753,40]
[325369490,1714760549040,2306.64,0.00025753,40]
[325369491,1714760549630,2306.64,0.00025753,40]
[325369492,1714760549773,2306.64,0.00025753,40]
[325369493,1714760550009,2306.83986265,0.00025753,40]
[325369495,1714760739148,-166.666666,0.00022797,2]
[325369496,1714760739168,-831.31443638,0.00023196,2]
[325369497,1714760781421,999.0,0.00025205,20]
[325369498,1714760781720,999.0,0.00025205,22]
[325369499,1714760782000,999.0,0.00025205,24]
[325369500,1714760782937,999.0,0.00025205,26]
[325369501,1714760783240,999.0,0.00025205,28]
[325369502,1714760783553,999.0,0.00025205,30]
[325369503,1714760783858,999.0,0.00025205,32]
[325369504,1714760784162,999.0,0.00025205,34]
[325369505,1714760784451,999.0,0.00025205,36]
[325369506,1714760784769,999.0,0.00025205,38]
[325369507,1714760785023,999.0,0.00025205,40]
[325369508,1714760785293,779.76,0.00025205,40]
[325369552,1714761031972,-415.38634656,0.00023196,2]
[325369562,1714761032074,-6173.43637326,0.00023196,2]
[325369565,1714761032088,-620.000028,0.00023345,2]
[325369567,1714761032100,-166.666666,0.00023419,2]
[325369569,1714761032113,-166.666666,0.0002404,2]
[325369571,1714761032126,-153.0,0.00024082,2]
[325369574,1714761032137,-153.0,0.00024082,2]
[325369576,1714761032150,-153.0,0.00024082,2]
[325369578,1714761032164,-153.0,0.00024082,2]
[325369580,1714761032176,-153.0,0.00024082,2]
[325369583,1714761032188,-153.0,0.00024082,2]
[325369585,1714761032200,-153.0,0.00024082,2]
[325369587,1714761032213,-153.0,0.00024082,2]
[325369589,1714761032224,-153.0,0.00024485,2]
[325369591,1714761032241,-153.0,0.00024485,2]
[325369594,1714761032253,-153.0,0.00024485,2]